fUST/lending_fUST_20251001
["ID","MTS","AMOUNT","RATE_DAILY","PERIOD"]
[388694867,1759320646675,-500.0,0.00019452,2]
[388694869,1759320646684,-453.32245917,0.00019452,2]
[388694871,1759320646694,-277.50853813,0.00019452,2]
[388694873,1759320646703,-1635.84,0.00019452,2]
[388694876,1759320646712,-500.0,0.00019452,2]
[388694878,1759320646721,-1331.41,0.00019452,2]
[388694879,1759320646730,-500.0,0.00019452,2]
[388694882,1759320646740,-753.6,0.00019452,2]
[388694883,1759320646750,-500.0,0.00019452,2]
[388694886,1759320646759,-608.8,0.00019452,2]
[388694888,1759320646768,-1410.65,0.00019452,2]
[388694890,1759320646777,-500.0,0.00019452,2]
[388694891,1759320646786,-969.33,0.00019452,2]
[388694893,1759320646795,-1287.65,0.00019452,2]
[388694895,1759320646804,-513.99,0.00019452,2]
[388694897,1759320646814,-500.0,0.00019452,2]
[388694899,1759320646823,-500.0,0.00019452,2]
[388694901,1759320646832,-500.0,0.00019452,2]
[388694903,1759320646842,-467.25735397,0.00019452,2]
[388694906,1759320646852,-500.0,0.00019452,2]
[388694908,1759320646862,-500.0,0.00019452,2]
[388694910,1759320646872,-1732.6,0.00019452,2]
[388694912,1759320646882,-500.0,0.00019452,2]
[388694914,1759320646891,-500.0,0.00019452,2]
[388694916,1759320646900,-609.58,0.00019452,2]
[388694918,1759320646910,-500.0,0.00019452,2]
[388694920,1759320646919,-461.900177,0.00019452,2]
[388694921,1759320646928,-500.0,0.00019452,2]
[388694923,1759320646938,-1538.32,0.00019452,2]
[388694925,1759320646947,-500.0,0.00019452,2]
[388694927,1759320646957,-500.0,0.00019452,2]
[388694929,1759320646966,-480.0,0.00019452,2]
[388694931,1759320646975,-460.0,0.00019452,2]
[388694933,1759320646985,-500.0,0.00019452,2]
[388694935,1759320646994,-500.0,0.00019452,2]
[388694937,1759320647003,-1690.93,0.00019452,2]
[388694939,1759320647012,-1362.49,0.00019452,2]
[388694941,1759320647021,-3743.6,0.00019452,2]
[388694943,1759320647030,-688.66,0.00019452,2]
[388694945,1759320647038,-625.97,0.00019452,2]
[388694946,1759320647047,-500.0,0.00019452,2]
[388694948,1759320647056,-687.26,0.00019452,2]
[388694950,1759320647065,-1581.1,0.00019452,2]
[388694952,1759320647075,-532.14,0.00019452,2]
[388694954,1759320647084,-5446.89,0.00019452,2]
[388694956,1759320647094,-784.27,0.00019452,2]
[388694958,1759320647103,-870.41,0.00019452,2]
[388694960,1759320647111,-1124.52,0.00019452,2]
[388694962,1759320647122,-1500.68,0.00019452,2]
[388694964,1759320647133,-1329.71,0.00019452,2]
[388694966,1759320647142,-1828.66,0.00019452,2]
[388694968,1759320647151,-500.0,0.00019452,2]
[388694970,1759320647161,-500.0,0.00019452,2]
[388694971,1759320647172,-500.0,0.00019452,2]
[388694973,1759320647181,-996.02,0.00019452,2]
[388694975,1759320647191,-500.0,0.00019452,2]
[388694977,1759320647199,-478.55626248,0.00019452,2]
[388694979,1759320647209,-500.0,0.00019452,2]
[388694981,1759320647218,-641.62,0.00019452,2]
[388694983,1759320647227,-471.09402315,0.00019452,2]
[388694985,1759320647236,-1631.9,0.00019452,2]
[388694987,1759320647246,-292.55651801,0.00019452,2]
[388694989,1759320647256,-500.0,0.00019452,2]
[388694991,1759320647265,-500.0,0.00019452,2]
[388694993,1759320647274,-1322.05,0.00019452,2]
[388694995,1759320647283,-1948.55,0.00019452,2]
[388694997,1759320647292,-500.0,0.00019452,2]
[388694999,1759320647301,-500.0,0.00019452,2]
[388695000,1759320647310,-500.0,0.00019452,2]
[388695002,1759320647320,-2760.55,0.00019452,2]
[388695004,1759320647328,-500.0,0.00019452,2]
[388695006,1759320647337,-500.0,0.00019452,2]
[388695008,1759320647347,-500.0,0.00019452,2]
[388695010,1759320647356,-500.0,0.00019452,2]
[388695012,1759320647364,-500.0,0.00019452,2]
[388695014,1759320647374,-2922.0,0.00019452,2]
[388695016,1759320647383,-500.0,0.00019452,2]
[388695018,1759320647392,-490.73030251,0.00019452,2]
[388695020,1759320647401,-500.0,0.00019452,2]
[388695022,1759320647410,-1700.34,0.00019452,2]
[388695023,1759320647419,-500.0,0.00019452,2]
[388695025,1759320647428,-500.0,0.00019452,2]
[388695027,1759320647437,-3927.86,0.00019452,2]
[388695029,1759320647446,-500.0,0.00019452,2]
[388695031,1759320647460,-500.0,0.00019452,2]
[388695033,1759320647469,-500.0,0.00019452,2]
[388695035,1759320647478,-500.0,0.00019452,2]
[388695037,1759320647487,-2025.65,0.00019452,2]
[388695039,1759320647498,-500.0,0.00019452,2]
[388695040,1759320647508,-460.0,0.00019452,2]
[388695042,1759320647518,-500.0,0.00019452,2]
[388695044,1759320647527,-941.44,0.00019452,2]
[388695046,1759320647539,-487.46738974,0.00019452,2]
[388695048,1759320647548,-812.39,0.00019452,2]
[388695050,1759320647557,-928.86,0.00019452,2]
[388695052,1759320647567,-500.0,0.00019452,2]
[388695054,1759320647576,-500.0,0.00019473,2]
[388695056,1759320647586,-471.20805777,0.00019473,2]
[388695058,1759320647595,-500.0,0.00019473,2]
[388695060,1759320647604,-500.0,0.00019473,2]
[388695062,1759320647613,-500.0,0.00019473,2]
[388695064,1759320647623,-176.23590451,0.00019473,2]
[388695066,1759320647633,-500.0,0.00019473,2]
[388695068,1759320647642,-500.0,0.00019473,2]
[388695069,1759320647651,-500.0,0.00019473,2]
[388695071,1759320647661,-500.0,0.00019473,2]
[388695073,1759320647670,-501.49014216,0.00019473,2]
[388695075,1759320647679,-500.0,0.00019473,2]
[388695077,1759320647688,-501.30909708,0.00019473,2]
[388695079,1759320647698,-200.01019671,0.00019473,2]
[388695081,1759320647707,-200.01019671,0.00019473,2]
[388695083,1759320647717,-553.47499876,0.00019473,2]
[388695085,1759320647726,-200.01172182,0.00019473,2]
[388695087,1759320647735,-500.0,0.00019473,2]
[388695089,1759320647746,-500.0,0.00019473,2]
[388695090,1759320647755,-500.0,0.00019473,2]
[388695092,1759320647764,-150.40881481,0.00019473,2]
[388695094,1759320647773,-200.01019669,0.00019473,2]
[388695096,1759320647782,-500.0,0.00019473,2]
[388695098,1759320647791,-487.30246011,0.00019473,2]
[388695100,1759320647800,-500.0,0.00019473,2]
[388695102,1759320647808,-200.0117218,0.00019473,2]
[388695103,1759320647818,-500.0,0.00019473,2]
[388695105,1759320647828,-500.0,0.00019473,2]
[388695107,1759320647837,-500.0,0.00019473,2]
[388695109,1759320647847,-500.0,0.00019473,2]
[388695111,1759320647856,-500.0,0.00019473,2]
[388695113,1759320647865,-500.0,0.00019473,2]
[388695115,1759320647875,-200.0117218,0.00019473,2]
[388695117,1759320647884,-500.0,0.00019473,2]
[388695118,1759320647893,-291.0232396,0.00019473,2]
[388695120,1759320647902,-200.01019669,0.00019473,2]
[388695122,1759320647911,-500.0,0.00019473,2]
[388695124,1759320647920,-200.41102314,0.00019473,2]
[388695126,1759320647930,-500.0,0.00019473,2]
[388695128,1759320647939,-500.0,0.00019473,2]
[388695130,1759320647948,-500.0,0.00019473,2]
[388695132,1759320647957,-500.0,0.00019473,2]
[388695133,1759320647966,-500.73488065,0.00019473,2]
[388695135,1759320647976,-500.0,0.00019473,2]
[388695137,1759320647985,-500.0,0.00019473,2]
[388695139,1759320647995,-500.0,0.00019473,2]
[388695141,1759320648004,-500.0,0.00019473,2]
[388695143,1759320648013,-500.0,0.00019473,2]
[388695145,1759320648023,-500.0,0.00019473,2]
[388695147,1759320648032,-256.69308645,0.00019473,2]
[388695149,1759320648042,-500.0,0.00019473,2]
[388695151,1759320648051,-501.65264347,0.00019473,2]
[388695153,1759320648060,-500.0,0.00019473,2]
[388695155,1759320648068,-500.0,0.00019473,2]
[388695157,1759320648077,-502.60943045,0.00019473,2]
[388695158,1759320648086,-500.0,0.00019473,2]
[388695160,1759320648095,-500.0,0.00019473,2]
[388695162,1759320648105,-500.0,0.00019473,2]
[388695164,1759320648114,-500.0,0.00019473,2]
[388695166,1759320648123,-158.96308781,0.00019473,2]
[388695168,1759320648132,-500.0,0.00019473,2]
[388695170,1759320648141,-500.0,0.00019473,2]
[388695172,1759320648151,-500.0,0.00019473,2]
[388695174,1759320648160,-500.0,0.00019473,2]
[388695176,1759320648168,-500.0,0.00019473,2]
[388695178,1759320648177,-500.0,0.00019473,2]
[388695180,1759320648186,-500.0,0.00019473,2]
[388695181,1759320648195,-506.20201655,0.00019473,2]
[388695183,1759320648204,-152.077418,0.00019473,2]
[388695185,1759320648213,-151.0,0.00019473,2]
[388695187,1759320648223,-152.070809,0.00019473,2]
[388695189,1759320648233,-151.0,0.00019473,2]
[388695191,1759320648242,-153.216762,0.00019473,2]
[388695193,1759320648251,-151.0,0.00019473,2]
[388695195,1759320648260,-151.0,0.00019473,2]
[388695196,1759320648269,-151.0,0.00019473,2]
[388695198,1759320648278,-3096.843294,0.00019473,2]
[388695200,1759320648287,-151.0,0.00019473,2]
[388695202,1759320648296,-3096.843294,0.00019473,2]
[388695204,1759320648305,-3096.843294,0.00019473,2]
[388695206,1759320648314,-3096.843294,0.00019473,2]
[388695208,1759320648323,-151.0,0.00019473,2]
[388695210,1759320648332,-151.0,0.00019473,2]
[388695211,1759320648341,-151.0,0.00019473,2]
[388695213,1759320648351,-151.0,0.00019473,2]
[388695215,1759320648360,-151.0,0.00019473,2]
[388695216,1759320648368,-160.639848,0.00019473,2]
[388695218,1759320648378,-151.0,0.00019473,2]
[388695220,1759320648387,-4181.21640653,0.00019484,2]
[388695221,1759320648397,-176.97,0.00019526,2]
[388695223,1759320648406,-151.4,0.00019526,2]
[388695225,1759320648415,-151.4,0.00019526,2]
[388695227,1759320648424,-151.4,0.00019526,2]
[388695228,1759320648433,-151.4,0.00019526,2]
[388695230,1759320648442,-151.4,0.00019526,2]
[388695232,1759320648454,-151.4,0.00019526,2]
[388695234,1759320648464,-417.0,0.00019554,2]
[388695235,1759320648474,-150.0,0.00019561,2]
[388695237,1759320648483,-164.0,0.00019561,2]
[388695239,1759320648493,-13392.14336842,0.00019616,2]
[388695241,1759320648503,-179.342345,0.00019686,7]
[388695242,1759320648512,-4181.21640653,0.00019687,2]
[388695244,1759320648522,-1000.0,0.00019721,2]
[388695246,1759320648534,-508.08123487,0.00019721,2]
[388695248,1759320648543,-1000.0,0.00019721,2]
[388695250,1759320648553,-1000.0,0.00019721,2]
[388695252,1759320648562,-515.63066607,0.00019721,2]
[388695253,1759320648571,-1000.0,0.00019721,2]
[388695255,1759320648580,-1000.0,0.00019721,2]
[388695257,1759320648590,-1000.0,0.00019721,2]
[388695259,1759320648599,-1000.0,0.00019721,2]
[388695260,1759320648608,-1000.0,0.00019721,2]
[388695262,1759320648617,-1000.0,0.00019721,2]
[388695264,1759320648626,-1000.0,0.00019721,2]
[388695265,1759320648635,-1000.0,0.00019721,2]
[388695267,1759320648644,-1000.0,0.00019721,2]
[388695269,1759320648654,-1000.0,0.00019721,2]
[388695271,1759320648663,-1000.0,0.00019721,2]
[388695273,1759320648673,-1000.0,0.00019721,2]
[388695274,1759320648683,-500.0,0.00019726,2]
[388695276,1759320648692,-500.0,0.00019726,2]
[388695278,1759320648701,-694.6,0.00019726,2]
[388695279,1759320648709,-500.0,0.00019726,2]
[388695281,1759320648718,-500.0,0.00019726,2]
[388695283,1759320648727,-500.0,0.00019726,2]
[388695285,1759320648736,-500.0,0.00019726,2]
[388695286,1759320648746,-500.0,0.00019726,2]
[388695288,1759320648755,-512.98635521,0.00019726,2]
[388695290,1759320648764,-500.0,0.00019726,2]
[388695292,1759320648773,-500.0,0.00019726,2]
[388695293,1759320648782,-1000.0,0.00019726,2]
[388695295,1759320648791,-500.0,0.00019726,2]
[388695297,1759320648800,-500.0,0.00019726,2]
[388695298,1759320648811,-500.0,0.00019726,2]
[388695300,1759320648821,-500.0,0.00019726,2]
[388695302,1759320648830,-500.0,0.00019726,2]
[388695304,1759320648839,-500.0,0.00019726,2]
[388695306,1759320648848,-500.0,0.00019726,2]
[388695307,1759320648858,-500.0,0.00019726,2]
[388695309,1759320648867,-500.0,0.00019726,2]
[388695311,1759320648876,-500.0,0.00019726,2]
[388695313,1759320648885,-384.80047157,0.00019726,2]
[388695315,1759320648895,-500.0,0.00019726,2]
[388695316,1759320648904,-736.33,0.00019726,2]
[388695318,1759320648913,-151.0,0.00019726,2]
[388695320,1759320648922,-445.43280443,0.00019726,2]
[388695322,1759320648931,-500.0,0.00019726,2]
[388695324,1759320648940,-500.0,0.00019726,2]
[388695326,1759320648949,-500.0,0.00019726,2]
[388695327,1759320648958,-151.0,0.00019726,2]
[388695329,1759320648967,-505.58,0.00019726,2]
[388695331,1759320648976,-737.15,0.00019726,2]
[388695333,1759320648986,-500.0,0.00019726,2]
[388695335,1759320648995,-989.99,0.00019726,2]
[388695336,1759320649004,-500.0,0.00019726,2]
[388695338,1759320649014,-500.0,0.00019726,2]
[388695340,1759320649023,-965.61,0.00019726,2]
[388695342,1759320649033,-500.0,0.00019726,2]
[388695344,1759320649042,-525.24,0.00019726,2]
[388695346,1759320649051,-500.0,0.00019726,2]
[388695348,1759320649060,-500.0,0.00019726,2]
[388695349,1759320649069,-840.33,0.00019726,2]
[388695351,1759320649078,-500.0,0.00019726,2]
[388695353,1759320649087,-500.0,0.00019726,2]
[388695355,1759320649096,-500.0,0.00019726,2]
[388695356,1759320649105,-500.0,0.00019726,2]
[388695358,1759320649114,-151.0,0.00019726,2]
[388695360,1759320649123,-500.0,0.00019726,2]
[388695362,1759320649133,-500.0,0.00019726,2]
[388695364,1759320649143,-500.0,0.00019726,2]
[388695366,1759320649154,-500.0,0.00019726,2]
[388695368,1759320649163,-500.0,0.00019726,2]
[388695369,1759320649172,-500.0,0.00019726,2]
[388695371,1759320649181,-156.21857,0.00019726,2]
[388695373,1759320649190,-500.0,0.00019726,2]
[388695375,1759320649201,-500.0,0.00019726,2]
[388695377,1759320649210,-500.0,0.00019726,2]
[388695378,1759320649219,-500.0,0.00019726,2]
[388695380,1759320649227,-1000.0,0.00019726,2]
[388695382,1759320649237,-500.0,0.00019726,2]
[388695384,1759320649247,-500.0,0.00019726,2]
[388695385,1759320649256,-843.24,0.00019726,2]
[388695387,1759320649265,-500.0,0.00019726,2]
[388695389,1759320649274,-494.9007129,0.00019726,2]
[388695391,1759320649283,-156.17428807,0.00019726,2]
[388695393,1759320649293,-846.04,0.00019726,2]
[388695394,1759320649302,-500.0,0.00019726,2]
[388695396,1759320649311,-500.0,0.00019726,2]
[388695398,1759320649321,-500.0,0.00019726,2]
[388695400,1759320649330,-500.0,0.00019726,2]
[388695402,1759320649340,-2147.04,0.00019726,2]
[388695404,1759320649349,-155.557944,0.00019726,2]
[388695405,1759320649358,-445.43133117,0.00019726,2]
[388695407,1759320649367,-500.0,0.00019726,2]
[388695409,1759320649375,-151.0,0.00019726,2]
[388695411,1759320649384,-500.0,0.00019726,2]
[388695413,1759320649393,-442.09087653,0.00019726,2]
[388695414,1759320649403,-500.0,0.00019726,2]
[388695416,1759320649412,-395.80825854,0.00019726,2]
[388695418,1759320649421,-500.0,0.00019726,2]
[388695420,1759320649430,-500.0,0.00019726,2]
[388695422,1759320649439,-449.92179903,0.00019726,2]
[388695424,1759320649448,-500.0,0.00019726,2]
[388695426,1759320649462,-500.0,0.00019726,2]
[388695427,1759320649470,-550.58,0.00019726,2]
[388695429,1759320649479,-500.0,0.00019726,2]
[388695431,1759320649488,-500.0,0.00019726,2]
[388695445,1759320649631,-500.0,0.00019726,2]
[388695447,1759320649641,-500.0,0.00019726,2]
[388695449,1759320649650,-707.69,0.00019726,2]
[388695450,1759320649658,-500.0,0.00019726,2]
[388695452,1759320649668,-332.57946058,0.00019726,2]
[388695454,1759320649677,-500.0,0.00019726,2]
[388695456,1759320649686,-833.33,0.00019726,2]
[388695458,1759320649695,-500.0,0.00019726,2]
[388695460,1759320649704,-500.0,0.00019726,2]
[388695461,1759320649713,-475.86634205,0.00019726,2]
[388695463,1759320649722,-500.0,0.00019726,2]
[388695465,1759320649731,-151.0,0.00019726,2]
[388695467,1759320649740,-500.0,0.00019726,2]
[388695469,1759320649749,-721.98,0.00019726,2]
[388695471,1759320649759,-151.0,0.00019726,2]
[388695473,1759320649768,-1279.89,0.00019726,2]
[388695474,1759320649777,-151.0,0.00019726,2]
[388695476,1759320649787,-151.0,0.00019726,2]
[388695478,1759320649796,-500.0,0.00019726,2]
[388695480,1759320649805,-500.0,0.00019726,2]
[388695482,1759320649814,-745.73,0.00019726,2]
[388695484,1759320649823,-151.0,0.00019726,2]
[388695486,1759320649833,-500.0,0.00019726,2]
[388695487,1759320649842,-172.698241,0.00019726,2]
[388695489,1759320649851,-715.31,0.00019726,2]
[388695491,1759320649860,-500.0,0.00019726,2]
[388695493,1759320649869,-500.0,0.00019726,2]
[388695495,1759320649878,-500.0,0.00019726,2]
[388695497,1759320649887,-2003.68,0.00019726,2]
[388695498,1759320649896,-151.0,0.00019726,2]
[388695500,1759320649904,-500.0,0.00019726,2]
[388695502,1759320649914,-151.579664,0.00019726,2]
[388695504,1759320649923,-500.0,0.00019726,2]
[388695506,1759320649931,-518.67,0.00019726,2]
[388695508,1759320649941,-500.0,0.00019726,2]
[388695509,1759320649950,-500.0,0.00019726,2]
[388695511,1759320649959,-1225.59,0.00019726,2]
[388695513,1759320649968,-500.0,0.00019726,2]
[388695515,1759320649977,-2607.87,0.00019726,2]
[388695517,1759320649987,-582.49,0.00019726,2]
[388695519,1759320649997,-500.0,0.00019726,2]
[388695521,1759320650006,-500.0,0.00019726,2]
[388695522,1759320650015,-640.23146803,0.00019726,2]
[388695524,1759320650024,-152.468174,0.00019726,2]
[388695526,1759320650033,-500.0,0.00019726,2]
[388695528,1759320650043,-500.0,0.00019726,2]
[388695530,1759320650051,-2194.54,0.00019726,2]
[388695532,1759320650061,-500.0,0.00019726,2]
[388695534,1759320650070,-500.0,0.00019726,2]
[388695535,1759320650079,-1000.83,0.00019726,2]
[388695537,1759320650088,-500.0,0.00019726,2]
[388695539,1759320650097,-500.0,0.00019726,2]
[388695541,1759320650107,-521.56752063,0.00019726,2]
[388695543,1759320650115,-500.0,0.00019726,2]
[388695545,1759320650124,-422.08430554,0.00019726,2]
[388695547,1759320650133,-500.0,0.00019726,2]
[388695548,1759320650142,-500.0,0.00019726,2]
[388695550,1759320650152,-500.0,0.00019726,2]
[388695552,1759320650162,-500.0,0.00019726,2]
[388695554,1759320650172,-500.0,0.00019726,2]
[388695556,1759320650182,-500.0,0.00019726,2]
[388695558,1759320650192,-624.71,0.00019726,2]
[388695560,1759320650201,-500.0,0.00019726,2]
[388695561,1759320650211,-480.0,0.00019726,2]
[388695563,1759320650221,-500.0,0.00019726,2]
[388695565,1759320650231,-500.0,0.00019726,2]
[388695567,1759320650240,-500.0,0.00019726,2]
[388695569,1759320650252,-500.0,0.00019726,2]
[388695571,1759320650261,-500.0,0.00019726,2]
[388695573,1759320650271,-500.0,0.00019726,2]
[388695575,1759320650280,-500.0,0.00019726,2]
[388695577,1759320650289,-500.0,0.00019726,2]
[388695578,1759320650298,-617.87,0.00019726,2]
[388695580,1759320650308,-500.0,0.00019726,2]
[388695582,1759320650317,-301.309989,0.00019726,2]
[388695584,1759320650328,-151.0,0.00019726,2]
[388695586,1759320650337,-1052.05,0.00019726,2]
[388695588,1759320650346,-514.89,0.00019726,2]
[388695590,1759320650356,-500.0,0.00019726,2]
[388695592,1759320650366,-672.57,0.00019726,2]
[388695593,1759320650375,-500.0,0.00019726,2]
[388695595,1759320650384,-151.0,0.00019726,2]
[388695597,1759320650393,-2195.31,0.00019726,2]
[388695599,1759320650402,-853.86,0.00019726,2]
[388695601,1759320650411,-500.0,0.00019726,2]
[388695603,1759320650421,-500.0,0.00019726,2]
[388695605,1759320650430,-525.14,0.00019726,2]
[388695606,1759320650439,-649.43636513,0.00019726,2]
[388695608,1759320650448,-1144.28,0.00019726,2]
[388695610,1759320650462,-466.31661819,0.00019726,2]
[388695612,1759320650471,-500.0,0.00019726,2]
[388695614,1759320650480,-500.0,0.00019726,2]
[388695616,1759320650489,-500.0,0.00019726,2]
[388695618,1759320650502,-500.0,0.00019726,2]
[388695620,1759320650511,-151.0,0.00019726,2]
[388695621,1759320650521,-837.14,0.00019726,2]
[388695623,1759320650532,-151.0,0.00019726,2]
[388695625,1759320650541,-500.0,0.00019726,2]
[388695627,1759320650551,-500.0,0.00019726,2]
[388695629,1759320650559,-500.0,0.00019726,2]
[388695631,1759320650569,-500.0,0.00019726,2]
[388695633,1759320650578,-500.0,0.00019726,2]
[388695634,1759320650587,-500.0,0.00019726,2]
[388695636,1759320650597,-160.500122,0.00019726,2]
[388695638,1759320650606,-500.0,0.00019726,2]
[388695640,1759320650616,-500.0,0.00019726,2]
[388695642,1759320650625,-151.0,0.00019726,2]
[388695644,1759320650634,-500.0,0.00019726,2]
[388695645,1759320650643,-500.0,0.00019726,2]
[388695648,1759320650653,-500.0,0.00019726,2]
[388695649,1759320650663,-151.0,0.00019726,2]
[388695651,1759320650673,-446.01671891,0.00019726,2]
[388695653,1759320650684,-500.0,0.00019726,2]
[388695655,1759320650693,-151.0,0.00019726,2]
[388695657,1759320650703,-1814.51,0.00019726,2]
[388695659,1759320650712,-500.0,0.00019726,2]
[388695661,1759320650721,-3103.44,0.00019726,2]
[388695663,1759320650731,-626.76,0.00019726,2]
[388695665,1759320650740,-151.0,0.00019726,2]
[388695667,1759320650750,-500.0,0.00019726,2]
[388695669,1759320650759,-837.62,0.00019726,2]
[388695670,1759320650768,-151.0,0.00019726,2]
[388695672,1759320650778,-3011.93,0.00019726,2]
[388695674,1759320650787,-500.0,0.00019726,2]
[388695676,1759320650796,-500.0,0.00019726,2]
[388695678,1759320650806,-500.0,0.00019726,2]
[388695680,1759320650815,-500.0,0.00019726,2]
[388695682,1759320650824,-9707.79,0.00019726,2]
[388695684,1759320650833,-558.29,0.00019726,2]
[388695685,1759320650843,-623.69,0.00019726,2]
[388695687,1759320650852,-500.0,0.00019726,2]
[388695689,1759320650862,-500.0,0.00019726,2]
[388695691,1759320650871,-500.0,0.00019726,2]
[388695693,1759320650880,-500.0,0.00019726,2]
[388695695,1759320650889,-500.0,0.00019726,2]
[388695697,1759320650899,-500.0,0.00019726,2]
[388695699,1759320650907,-1398.77,0.00019726,2]
[388695700,1759320650916,-500.0,0.00019726,2]
[388695702,1759320650927,-777.44,0.00019726,2]
[388695704,1759320650937,-2943.09,0.00019726,2]
[388695706,1759320650946,-169.31075035,0.00019726,2]
[388695708,1759320650955,-562.10935967,0.00019726,2]
[388695710,1759320650965,-500.0,0.00019726,2]
[388695712,1759320650975,-633.84,0.00019726,2]
[388695714,1759320650984,-769.37,0.00019726,2]
[388695716,1759320650993,-699.87,0.00019726,2]
[388695717,1759320651003,-725.68,0.00019726,2]
[388695719,1759320651012,-536.36,0.00019726,2]
[388695721,1759320651022,-1416.79,0.00019726,2]
[388695723,1759320651033,-500.0,0.00019726,2]
[388695725,1759320651042,-500.0,0.00019726,2]
[388695727,1759320651051,-890.93,0.00019726,2]
[388695729,1759320651060,-988.01,0.00019726,2]
[388695730,1759320651069,-542.9,0.00019726,2]
[388695732,1759320651079,-1581.99,0.00019726,2]
[388695734,1759320651089,-3836.84,0.00019726,2]
[388695736,1759320651098,-500.0,0.00019726,2]
[388695738,1759320651109,-500.0,0.00019726,2]
[388695740,1759320651119,-151.0,0.00019726,2]
[388695742,1759320651128,-768.33,0.00019726,2]
[388695744,1759320651137,-500.0,0.00019726,2]
[388695745,1759320651146,-753.42,0.00019726,2]
[388695747,1759320651155,-1397.1,0.00019726,2]
[388695748,1759320651164,-1175.95,0.00019726,2]
[388695750,1759320651174,-500.0,0.00019726,2]
[388695751,1759320651182,-1131.51,0.00019726,2]
[388695752,1759320651192,-1040.35,0.00019726,2]
[388695753,1759320651201,-1765.72,0.00019726,2]
[388695754,1759320651210,-151.0,0.00019726,2]
[388695755,1759320651219,-500.0,0.00019726,2]
[388695756,1759320651228,-1358.96,0.00019726,2]
[388695757,1759320651238,-914.43,0.00019726,2]
[388695758,1759320651248,-500.0,0.00019726,2]
[388695759,1759320651257,-500.0,0.00019726,2]
[388695760,1759320651266,-1077.71,0.00019726,2]
[388695761,1759320651275,-1512.41,0.00019726,2]
[388695762,1759320651284,-1494.53,0.00019726,2]
[388695763,1759320651293,-500.0,0.00019726,2]
[388695764,1759320651303,-1192.61,0.00019726,2]
[388695765,1759320651312,-2593.98,0.00019726,2]
[388695766,1759320651322,-500.0,0.00019726,2]
[388695767,1759320651331,-500.0,0.00019726,2]
[388695768,1759320651340,-500.0,0.00019726,2]
[388695769,1759320651350,-912.84,0.00019726,2]
[388695770,1759320651360,-500.0,0.00019726,2]
[388695771,1759320651369,-1365.62,0.00019726,2]
[388695772,1759320651379,-500.0,0.00019726,2]
[388695773,1759320651392,-152.25779,0.00019726,2]
[388695774,1759320651401,-2301.49,0.00019726,2]
[388695775,1759320651411,-500.0,0.00019726,2]
[388695776,1759320651420,-1635.84,0.00019726,2]
[388695777,1759320651429,-500.0,0.00019726,2]
[388695778,1759320651439,-1331.41,0.00019726,2]
[388695779,1759320651448,-445.82482971,0.00019726,2]
[388695780,1759320651461,-158.123531,0.00019726,2]
[388695781,1759320651470,-753.6,0.00019726,2]
[388695782,1759320651480,-500.0,0.00019726,2]